Cogmind - Beta 15 @@@ ROGUE MODE // 2025.08.22 @ 13:34:14 // AFD2020/Player2 Player: bugsniper Result: Core destroyed Performance ------------- Evolutions (5) 2500 Regions Visited (10) 2000 Robots Destroyed (147) 735 Value Destroyed (6785) 6785 Prototype IDs (11) 220 Alien Tech Used (0) 0 Bonus (10616) 10616 TOTAL SCORE: 22856 Bonus ------- Triggered High Security 500 High Alert Combat Kills 4667 Follower Combat Kills 4730 Network Hubs Disabled 200 Registered with UFD 300 Met Optimus in HQ 500 Built Enhanced Grunts 300 Met R17 at Cetus 500 Friendly Fire -1081 Cogmind --------- Core Integrity 0/1000 Matter 44/300 Energy 489/500 System Corruption 9% Temperature Cool (0) Movement Core (350) Ox6 Location -5/Factory Parts ------- > --- POWER (2) -------- Light Angular Momentum Engine > --- PROPULSION (3) --- (None) > --- UTILITY (8) ------ Advanced Cooling System Improved Coolant Injector Energy Well > --- WEAPON (4) ------- Plasma Rifle > --- INVENTORY (5) ---- Light Angular Momentum Engine Carbon-fiber Leg Advanced Heat Sink Surveybot 17 Chip Phasing Sabre Peak State ------------ > --- POWER ------------ Micro Nuclear Core Micro Nuclear Core > --- PROPULSION ------- Improved Medium Treads Centrium Heavy Treads > --- UTILITY ---------- Advanced Heat Sink Advanced Heat Sink Medium Storage Unit Centrium Medium Armor Plating Centrium Medium Armor Plating Centrium Medium Armor Plating High-powered Tractor Beam > --- WEAPON ----------- Advanced KE Penetrator Advanced KE Penetrator Magnetic Acceleration Cannon > --- INVENTORY -------- Light Treads Light Treads Centrium Heavy Treads Surveybot 17 Chip Coil Gun Advanced KE Penetrator Flak Cannon Bore Cannon Phasing Sabre [Rating: 98] Favorites ----------- Power Light Angular Momentum Engine Engine Light Angular Momentum Engine Power Core Micro Nuclear Core Reactor Antimatter Reactor Propulsion Aluminum Leg Treads Improved Medium Treads Leg Aluminum Leg Hover Unit Cooled Airjet Utility Medium Storage Unit Device Advanced Heat Sink Storage Medium Storage Unit Hackware Improved System Shield Protection Centrium Medium Armor Plating Weapon Magnetic Acceleration Cannon Energy Gun Medium Laser Energy Cannon Phase Cannon Ballistic Gun Barrage Gun Ballistic Cannon Magnetic Acceleration Cannon Launcher Tiamat Missile Launcher Special Weapon Junk Cannon Slashing Weapon Phasing Sabre Piercing Weapon Makeshift Spear Build | -11 -10 -10 -10 -8 -6 -6 -6 -6 -6 -5 ------- Run | Yrd Mat Min Sub Scr Fac Ext Cet Arc Hub Fac Slots Evolved 10 | . . . . . 8 . . . . 2 Power 1 | . . . . . 1 . . . . . Propulsion 1 | . . . . . 1 . . . . . Utility 6 | . . . . . 5 . . . . 1 Weapon 2 | . . . . . 1 . . . . 1 Parts Attached 109 | . 8 . 7 8 21 15 7 1 3 39 Power 19 | . . . 1 1 3 5 . . . 9 Engine 14 | . . . 1 . 3 3 . . . 7 Core 3 | . . . . 1 . 2 . . . . Reactor 2 | . . . . . . . . . . 2 Propulsion 17 | . 2 . 1 2 5 3 1 . 1 2 Treads 11 | . . . . 2 3 3 1 . 1 1 Leg 5 | . 2 . 1 . 1 . . . . 1 Wheel . | . . . . . . . . . . . Hover 1 | . . . . . 1 . . . . . Flight . | . . . . . . . . . . . Utility 38 | . 2 . 1 1 9 3 4 1 . 17 Device 21 | . 1 . 1 . 6 1 1 . . 11 Storage 3 | . 1 . . . . . . . . 2 Processor . | . . . . . . . . . . . Hackware 2 | . . . . . 2 . . . . . Protection 12 | . . . . 1 1 2 3 1 . 4 Artifact . | . . . . . . . . . . . Weapon 35 | . 4 . 4 4 4 4 2 . 2 11 Energy Gun 11 | . 4 . 1 . . . . . 1 5 Energy Cannon 1 | . . . . . . . . . . 1 Ballistic Gun 10 | . . . 2 2 1 . 2 . 1 2 Ballistic Cannon 7 | . . . . 1 1 4 . . . 1 Launcher 2 | . . . . . 1 . . . . 1 Special Weapon 1 | . . . . 1 . . . . . . Impact Weapon . | . . . . . . . . . . . Slashing Weapon 2 | . . . . . 1 . . . . 1 Piercing Weapon 1 | . . . 1 . . . . . . . Special Melee Weapon . | . . . . . . . . . . . Unidentified Prototypes 7 | . . . . 1 1 . 3 . . 2 Corrupted Parts 2 | . . . . . . . . . 2 . System Corruption 5 | . . . . . . . . . 5 . Parts Lost 35 | . . . . 1 1 2 . . 4 27 Power 7 | . . . . 1 . 1 . . . 5 Propulsion 5 | . . . . . . . . . 1 4 Utility 13 | . . . . . . 1 . . 2 10 Weapon 10 | . . . . . 1 . . . 1 8 Highest Loss Streak 6 | . . . . 1 1 1 . . 3 6 To Critical Strikes . | . . . . . . . . . . . Average Backups 8 | . 8 10 9 8 7 9 9 9 8 7 Power . | . 1 2 1 . . . . . . 1 Propulsion 2 | . 4 4 3 1 . 2 2 3 1 1 Utility 1 | . 1 2 2 2 1 1 1 1 1 1 Weapon 3 | . 1 2 2 2 3 4 5 5 5 3 Tool/Special . | . . . . . . . . . . . Unused Backups 33 | . 7 . 6 6 1 1 3 . 1 8 Power 5 | . 1 . . 3 . . . . . 1 Propulsion 14 | . 3 . 4 2 1 . 1 . 1 2 Utility 5 | . 1 . . 1 . . . . . 3 Weapon 9 | . 2 . 2 . . 1 2 . . 2 Tool/Special . | . . . . . . . . . . . Average Slot Usage (%) 94 | . 93 100 99 99 93 92 93 93 90 84 Engine 8 | . 14 14 14 8 9 12 . . . 5 Core 3 | . . . . 4 . . 13 13 13 3 Treads 10 | . . . . 10 16 20 16 13 13 7 Leg 11 | . 28 28 28 17 3 . . . . . Device 12 | . 7 14 14 2 24 17 16 19 12 27 Storage 9 | . 14 14 14 14 6 6 6 6 6 4 Protection 10 | . . . . 11 5 10 20 20 23 7 Energy Gun 4 | . 27 28 13 . . . . . . 2 Ballistic Gun 14 | . . . 12 27 15 4 8 13 12 11 Ballistic Cannon 4 | . . . . . 3 14 11 6 5 2 Peak Build Rating 98 | . 8 8 16 21 60 67 98 98 97 97 Average Rating 44 | . 7 8 11 16 48 63 83 97 93 84 On Entrance 40 | 6 6 8 8 14 17 60 58 98 97 76 Naked Turns . | . . . . . . . . . . . Heaviest Build 81 | 12 20 20 27 34 62 81 80 72 72 76 Greatest Support 110 | 20 20 20 20 43 80 80 110 110 110 103 Greatest Overweight (x) 15 | . . . 1 1 15 1 . . . . Average Overweight (x) . | . . . . . . . . . . . Largest Inventory Capacity 10 | . 10 10 10 10 10 10 10 10 10 10 Average Capacity 9 | . 9 10 10 10 10 10 10 10 10 9 Most Carried 10 | . 10 10 10 10 10 10 10 10 10 10 Average Carried 9 | . 8 10 9 9 8 9 9 10 9 8 Final Capacity 10 | 8 10 10 10 10 10 10 10 10 10 5 Final Carried 10 | 6 10 10 10 10 10 10 10 10 10 5 Class Distribution -------------------- 50% | Mutant 36% | Scavenger-Tank 8% | Commander-Tank Dominant Class ---------------- Mutant | -10/Materials Mutant | -10/Mines Mutant | -10/Subcaves Mutant | -8/Scraptown Scavenger-Tank | -6/Factory Commander-Tank | -6/Extension Scavenger-Tank | -6/Cetus Scavenger-Tank | -6/Archives Scavenger-Tank | -6/Hub_04(d) Scavenger-Tank | -5/Factory Resources | -11 -10 -10 -10 -8 -6 -6 -6 -6 -6 -5 ----------- Run | Yrd Mat Min Sub Scr Fac Ext Cet Arc Hub Fac Matter Collected 5628 | 200 89 10 96 110 437 1427 288 52 907 2012 Remotely 4425 | . . . . . 361 1166 288 52 850 1708 Salvage Created 5944 | . 282 . 41 . 280 247 48 82 1732 3232 Parts 249 | . 20 . 4 . 18 12 2 5 74 114 Haulers Intercepted 3 | . 1 . . . . . . . 2 . Recyclers Shooed 3 | . . . . . 1 . . . . 2 Parts Field Recycled . | . . . . . . . . . . . Retrieved Matter . | . . . . . . . . . . . Parts Self-Destructed 7 | . . . 7 . . . . . . . Prevented . | . . . . . . . . . . . Kills | -11 -10 -10 -10 -8 -6 -6 -6 -6 -6 -5 ------- Run | Yrd Mat Min Sub Scr Fac Ext Cet Arc Hub Fac Combat Hostiles Destroyed 110 | . 7 . 1 . 7 5 1 1 15 73 Guns 46 | . 7 . 1 . 3 3 . 1 13 18 Cannons 18 | . . . . . . 2 1 . 2 13 AOE 42 | . . . . . 4 . . . . 38 Classes Destroyed 20 | . 4 . 2 . 2 2 . . 5 5 Worker 12 | . . . . . 1 . . . 8 3 Builder 5 | . . . . . . 2 . . 1 2 Tunneler 2 | . . . . . . . . . . 2 Hauler 3 | . 1 . . . . . . . 2 . Recycler 3 | . . . . . . . . . 1 2 Mechanic 2 | . . . . . . . . . . 2 Operator 2 | . 1 . . . . . . . . 1 Watcher 3 | . . . . . . . . . 1 2 Swarmer 8 | . 3 . . . 4 . . . 1 . Saboteur 3 | . . . . . . . . . . 3 Grunt 55 | . 4 . . . 2 3 . . 4 42 Brawler 4 | . . . . . . . . . . 4 Duelist 9 | . . . . . . . . . 1 8 Protector 7 | . . . . . . . . . 2 5 Sentry 6 | . . . . . . 2 . 1 2 1 Hunter 7 | . . . . . 1 . . . . 6 Programmer 4 | . . . . . . . . . . 4 Cetus Guard 1 | . . . . . . . 1 . . . Enhanced Grunt 3 | . . . . . . . . . 3 . Lightning 5 | . . . . . . . . . 5 . Subdweller 1 | . . . 1 . . . . . . . Scrapoid 1 | . . . . . . . . . 1 . Zionite 1 | . . . 1 . . . . . . . Best Kill Streak 24 | . 2 . 1 . 4 2 1 1 14 24 Combat Bots Only 23 | . 2 . 1 . 4 2 1 1 6 23 Max Kills in Single Turn 8 | . 1 . 1 . 4 2 1 1 8 5 Gunslinging . | . . . . . . . . . . . Exploded 5 | . . . . . 4 . . . . 5 Melee . | . . . . . . . . . . . Uniques/NPCs Destroyed . | . . . . . . . . . . . Combat | -11 -10 -10 -10 -8 -6 -6 -6 -6 -6 -5 -------- Run | Yrd Mat Min Sub Scr Fac Ext Cet Arc Hub Fac Hostile Shots Fired 662 | . 29 . 5 8 27 153 12 4 103 321 Missed 218 | . 7 . 3 2 12 59 2 4 26 103 Hits 444 | . 22 . 2 6 15 94 10 . 77 218 Melee 15 | . . . . . . . . . 5 10 Projectile 429 | . 22 . 2 6 15 94 10 . 72 208 AOE 1 | . . . . . . . . . . 1 Critical Strikes 31 | . . . . 1 . 1 . . 12 17 Part Disruptions 2 | . . . . . . . 1 . 1 . Damage Taken 8907 | . 248 . 63 552 262 1001 272 17 2408 4084 Core 825 | . 58 . . 110 18 53 . . 178 408 Absorbed by Shields 675 | . . . . . 20 143 92 . . 420 Redirected to Shielding 35 | . . . . . . . . . . 35 Ignored by Resistances 89 | . . . . 3 30 . . . . 56 Core Remaining (%) 50 | 100 . . . 9 . . . . 42 . Volleys Fired 290 | . 34 . 5 3 13 30 10 3 58 134 Largest 4 | . 2 . 2 2 3 3 3 3 3 4 Hottest 240 | . 100 . 100 65 97 125 125 114 114 240 Shots Fired 771 | . 68 . 10 6 29 80 30 9 165 374 Gun 497 | . 68 . 10 4 20 30 6 6 113 240 Cannon 240 | . . . . 2 8 49 24 3 52 102 Launcher 34 | . . . . . 1 1 . . . 32 Special . | . . . . . . . . . . . Kinetic 548 | . . . 6 6 28 79 30 9 165 225 Thermal 182 | . 61 . 4 . . . . . . 117 Explosive 32 | . . . . . . . . . . 32 Electromagnetic 9 | . 7 . . . 1 1 . . . . Robot Hit Streak 14 | . 6 . 2 3 7 12 9 4 10 14 Robot Miss Streak 8 | . 8 . 2 2 3 4 3 1 8 3 Penetration Max 2 | . . . . . . . 1 . 1 2 Secondary Targets 1 | . . . . . . . . . 1 . Max Gunslinging Chain 1 | . . . . . . . . . 1 . Shots Hit Robots 487 | . 37 . 5 5 18 61 20 7 87 247 Core Hits 404 | . 20 . 3 2 22 31 17 3 79 227 Critical Kills 17 | . . . . . . . . 1 11 5 Critical Parts Destroyed 15 | . . . . . . . . 1 8 6 Critical Strikes 48 | . 5 . . . 1 5 2 2 21 12 Burn 5 | . 5 . . . . . . . . . Meltdown 2 | . . . . . . . . . . 2 Destroy 33 | . . . . . . . 1 2 21 9 Blast 8 | . . . . . 1 5 1 . . 1 Melee Attacks 11 | . . . 5 4 1 . . . . 1 Impact . | . . . . . . . . . . . Slashing 2 | . . . . . 1 . . . . 1 Piercing 9 | . . . 5 4 . . . . . . Sneak Attacks . | . . . . . . . . . . . Combat Hostiles . | . . . . . . . . . . . Follow-up Attacks . | . . . . . . . . . . . Damage Inflicted 23205 | . 595 . 85 116 499 1780 725 203 3873 15329 Guns 7555 | . 595 . 85 67 279 452 177 136 1832 3932 Cannons 4772 | . . . . 49 77 1201 548 67 827 2003 Explosions 10751 | . . . . . 106 116 . . 1191 9338 Melee . | . . . . . . . . . . . Ramming 127 | . . . . . 37 11 . . 23 56 Kinetic 9722 | . . . 73 116 356 1653 725 203 2659 3937 Thermal 2896 | . 519 . 12 . 20 27 . . . 2318 Explosive 9018 | . . . . . . . . . . 9018 Electromagnetic 1442 | . 76 . . . 86 89 . . 1191 . Impact . | . . . . . . . . . . . Slashing . | . . . . . . . . . . . Piercing . | . . . . . . . . . . . Highest Corruption 22 | . 2 2 2 1 . . . . 22 9 Average Corruption 3 | . 2 2 1 1 . . . . 12 3 Corruption Purged 2 | . . . 2 . . . . . . . Corruption Blocked . | . . . . . . . . . . . Effects 36 | . 5 9 2 . . . . . 10 10 Message Errors 7 | . 2 3 . . . . . . 1 1 Matter Fused 5 | . 1 1 . . . . . . 2 1 Heat Flow Errors 6 | . 1 2 2 . . . . . . 1 Energy Discharges 3 | . 1 1 . . . . . . . 1 Parts Rejected 2 | . . . . . . . . . . 2 Data Loss (minor) 5 | . . 1 . . . . . . 1 3 Data Loss (major) 1 | . . 1 . . . . . . . . Misfires 1 | . . . . . . . . . 1 . Weapon Failures 6 | . . . . . . . . . 5 1 Overload Shots . | . . . . . . . . . . . Overflow Damage 456 | . . . . . . . . . 9 447 Projectiles 101 | . . . . . . . . . 2 99 Explosions 355 | . . . . . . . . . 7 348 Melee . | . . . . . . . . . . . Knockbacks 42 | . . . . 1 . 7 . . 15 19 Impact . | . . . . . . . . . . . Kinetic 40 | . . . . 1 . 7 . . 15 17 Secondary 2 | . . . . . . . . . . 2 Self-Inflicted Damage 280 | . . . . . 22 41 . . 103 114 Shots 7 | . . . . . 1 2 . . 1 3 Rammed 12 | . . . . . 2 2 . . 3 5 Targets Rammed 13 | . . . . . 2 2 . . 4 5 Kicked . | . . . . . . . . . . . Crushed 1 | . . . . . . . . . 1 . Highest Temperature 346 | . 237 168 195 52 48 207 156 . 108 346 Average Temperature 52 | . 66 72 99 23 23 42 75 . 22 74 Received Heat Transfer 1766 | . 114 . 9 72 63 264 18 . 285 941 Siege Activations . | . . . . . . . . . . . Martial Activations . | . . . . . . . . . . . Shielding Activations . | . . . . . . . . . . . Robots Disrupted . | . . . . . . . . . . . Combat Hostiles . | . . . . . . . . . . . Robots Corrupted 5 | . . . . . . . . . 5 . Combat Hostiles . | . . . . . . . . . . . Parts Fried 11 | . . . . . . . . . 11 . Impact Corruptions . | . . . . . . . . . . . Robots Melted 4 | . . . . . . . . . . 4 Combat Hostiles 4 | . . . . . . . . . . 4 Parts Melted 9 | . . . . . . . . . . 9 Heat Transferred 5061 | . 1784 . 37 . 50 12 . . . 3178 Parts Sabotaged . | . . . . . . . . . . . Parts Stolen . | . . . . . . . . . . . Parts Stripped . | . . . . . . . . . . . Power Chain Reactions 2 | . . . . . 1 1 . . . . Alert | -11 -10 -10 -10 -8 -6 -6 -6 -6 -6 -5 ------- Run | Yrd Mat Min Sub Scr Fac Ext Cet Arc Hub Fac Maximum Alert Level 5 | . . . . . 2 1 1 1 5 5 Low Security (%) 40 | . 100 100 . . 20 32 38 85 23 . Level 1 25 | . . . . . . 68 61 14 21 . Level 2 8 | . . . . . 79 . . . 4 . Level 3 8 | . . . . . . . . . 21 32 Level 4 3 | . . . . . . . . . 10 10 Level 5 6 | . . . . . . . . . 18 22 High Security 6 | . . . . . . . . . . 34 Max Security . | . . . . . . . . . . . Peak Influence 4022 | . 188 34 . . 587 386 296 221 1867 4022 Initial 903 | . . 34 . . . 216 188 52 17 903 Average 581 | . 94 2 . . 399 244 218 130 787 1789 Influence Increases 9398 | . 492 . 54 . 804 897 365 209 2394 4183 Destroy 0b10 Robot/C 4160 | . 260 . 40 . 360 440 160 80 800 2020 Destroy 0b10 Robot/NC 385 | . 40 . . . 35 30 10 . 130 140 Destroy Leader 634 | . 58 . . . 70 30 . . 178 298 Allied During Kill 2198 | . 83 . 14 . 111 327 170 80 836 577 Successful Hack 49 | . 5 . . . 12 28 . . 4 . Disable Machine 765 | . . . . . 150 . . 45 255 315 Anti-Garrison Action 200 | . . . . . . . . . . 200 Destroy Structure 842 | . 1 . . . 51 12 25 4 191 558 Partial Spotted 30 | . . . . . 15 . . . . 15 Lose Combat Pursuer 135 | . 45 . . . . 30 . . . 60 Influence Decreases 5456 | . 402 90 54 . 362 1002 571 289 600 2086 Entered New Map 1486 | . . 56 . . . 226 149 79 34 942 Time Decay 2800 | . 402 34 54 . 332 626 342 190 356 464 Lost Part 830 | . . . . . 30 30 . . 90 680 Lost Ally 340 | . . . . . . 120 80 20 120 . Squads Dispatched 50 | . 1 . . . 6 2 . . 8 33 Investigation 6 | . . . . . 3 1 . . . 2 Extermination 4 | . . . . . 2 . . . 1 1 Reinforcement 11 | . 1 . . . 1 1 . . 6 2 Assault 27 | . . . . . . . . . 1 26 Garrison 2 | . . . . . . . . . . 2 Intercept . | . . . . . . . . . . . Searches Triggered . | . . . . . . . . . . . Construction Impeded 5 | . . . . . 1 1 . . 2 1 Haulers Reinforced . | . . . . . . . . . . . Active Scanning Responses . | . . . . . . . . . . . Cargo Convoy Interrupts 1 | . . . . . . . . . . 1 Stealth | -11 -10 -10 -10 -8 -6 -6 -6 -6 -6 -5 --------- Run | Yrd Mat Min Sub Scr Fac Ext Cet Arc Hub Fac Distress Signals 8 | . 3 . . . . 2 2 . 1 . Communications Jammed . | . . . . . . . . . . . Distress Signals . | . . . . . . . . . . . Times Spotted 249 | . 23 . 7 8 13 22 11 4 36 125 Peak Tracking Total 15 | . 4 . 3 4 4 4 5 2 5 15 Tactical Retreats 8 | . 3 . . . . 1 . . . 4 Traps | -11 -10 -10 -10 -8 -6 -6 -6 -6 -6 -5 ------- Run | Yrd Mat Min Sub Scr Fac Ext Cet Arc Hub Fac Traps Triggered 5 | . 1 . . . 1 1 . . 2 . Indirectly . | . . . . . . . . . . . Trap Hack Attempts . | . . . . . . . . . . . Triggered . | . . . . . . . . . . . Disarmed . | . . . . . . . . . . . Reprogrammed . | . . . . . . . . . . . Reused . | . . . . . . . . . . . Traps Extracted . | . . . . . . . . . . . Installed . | . . . . . . . . . . . Triggered . | . . . . . . . . . . . Machines | -11 -10 -10 -10 -8 -6 -6 -6 -6 -6 -5 ---------- Run | Yrd Mat Min Sub Scr Fac Ext Cet Arc Hub Fac Machines Disabled 53 | . . . . . 10 1 1 3 17 21 Max in Single Turn 11 | . . . . . . . . 1 11 2 Garrison Access 1 | . . . . . . . . . . 1 Network Hub 1 | . . . . . . . . . 1 . Energy Cycler 3 | . . . . . . 3 . . . . Machines Repaired . | . . . . . . . . . . . Machines Dismantled . | . . . . . . . . . . . Machines Sabotaged . | . . . . . . . . . . . Overloaded Fab Kills . | . . . . . . . . . . . Hacking | -11 -10 -10 -10 -8 -6 -6 -6 -6 -6 -5 --------- Run | Yrd Mat Min Sub Scr Fac Ext Cet Arc Hub Fac Machines Accessed 22 | . 4 . . 2 5 4 1 1 3 2 Terminals 14 | . 4 . . . 2 4 1 . 3 . Fabricators . | . . . . . . . . . . . Repair Stations 1 | . . . . . 1 . . . . . Recycling Units 2 | . . . . . 1 . . . . 1 Scanalyzers . | . . . . . . . . . . . Garrison Access 2 | . . . . . 1 . . . . 1 Total Hacks 69 | . 6 . . 3 11 10 1 25 9 4 Successful 47 | . 5 . . 3 5 3 . 25 4 2 Failed 22 | . 1 . . . 6 7 1 . 5 2 Catastrophic 6 | . . . . . . 2 1 . 1 2 Database Lockouts . | . . . . . . . . . . . Manual 8 | . . . . . 3 . 2 1 . 2 Terminals 32 | . 6 . . . 6 10 1 . 9 . Fabricators . | . . . . . . . . . . . Repair Stations 2 | . . . . . 2 . . . . . Recycling Units 4 | . . . . . 1 . . . . 3 Scanalyzers . | . . . . . . . . . . . Garrison Access 3 | . . . . . 2 . . . . 1 Terminal Hacks 43 | . 5 . . 3 3 3 . 25 4 . Record 28 | . . . . 3 . . . 25 . . Prototype ID Bank 2 | . 1 . . . . . . . 1 . Open Door 3 | . . . . . 1 2 . . . . Branch Access Points 1 | . . . . . 1 . . . . . Emergency Access Points 1 | . . . . . . . . . 1 . Locate Traps 4 | . 1 . . . 1 1 . . 1 . Maintenance Status 1 | . 1 . . . . . . . . . Hauler Manifests 1 | . . . . . . . . . 1 . Zone Layout 2 | . 2 . . . . . . . . . Fabricator Hacks . | . . . . . . . . . . . Repair Station Hacks 1 | . . . . . 1 . . . . . Scan Component 1 | . . . . . 1 . . . . . Recycling Unit Hacks 1 | . . . . . . . . . . 1 Retrieve Components 1 | . . . . . . . . . . 1 Scanalyzer . | . . . . . . . . . . . Garrison Access Hacks . | . . . . . . . . . . . Unauthorized Hacks 2 | . . . . . 1 . . . . 1 Terminals . | . . . . . . . . . . . Fabricators . | . . . . . . . . . . . Repair Stations . | . . . . . . . . . . . Recycling Units 1 | . . . . . 1 . . . . . Fedlink 1 | . . . . . 1 . . . . . Scanalyzers . | . . . . . . . . . . . Garrison Access 1 | . . . . . . . . . . 1 Jam 1 | . . . . . . . . . . 1 Data Cores Recovered 2 | . 1 . . . . . . . 1 . Used 1 | . . . . . . . . . 1 . Hacking Detections 15 | . 2 . . . 3 3 3 . 3 1 Full Trace Events 1 | . . . . . 1 . . . . . Feedback Events . | . . . . . . . . . . . Feedback Blocked . | . . . . . . . . . . . Robot Schematics Acquired . | . . . . . . . . . . . Robots Built . | . . . . . . . . . . . Authchips . | . . . . . . . . . . . Time . | . . . . . . . . . . . Total Robot Build Rating . | . . . . . . . . . . . Part Schematics Acquired . | . . . . . . . . . . . Parts Built . | . . . . . . . . . . . Authchips . | . . . . . . . . . . . Time . | . . . . . . . . . . . Total Part Build Rating . | . . . . . . . . . . . Parts Repaired . | . . . . . . . . . . . Time . | . . . . . . . . . . . Parts Recycled . | . . . . . . . . . . . Recycled Matter . | . . . . . . . . . . . Retrieved Matter . | . . . . . . . . . . . Retrieved Components 7 | . . . . . . . . . . 7 Parts Scanalyzed . | . . . . . . . . . . . Part Schematics Acquired . | . . . . . . . . . . . Parts Damaged . | . . . . . . . . . . . Bothacking | -11 -10 -10 -10 -8 -6 -6 -6 -6 -6 -5 ------------ Run | Yrd Mat Min Sub Scr Fac Ext Cet Arc Hub Fac Used RIF Installer . | . . . . . . . . . . . Robots Hacked . | . . . . . . . . . . . Non-combat . | . . . . . . . . . . . Combat . | . . . . . . . . . . . Robot Hacks Applied . | . . . . . . . . . . . Relay Couplers Released 6 | . . . . . . . . . . 6 Machine Destruction 3 | . . . . . . . . . . 3 Programmers 3 | . . . . . . . . . . 3 Fabnet Peak Effective % . | . . . . . . . . . . . Robots Rewired 14 | . . . . . . 14 . . . . Allies Hacked . | . . . . . . . . . . . Hacks Repelled . | . . . . . . . . . . . Allies | -11 -10 -10 -10 -8 -6 -6 -6 -6 -6 -5 -------- Run | Yrd Mat Min Sub Scr Fac Ext Cet Arc Hub Fac Total Allies 28 | . 1 2 . . . 20 5 . . . Largest Group 14 | . 1 3 3 2 1 14 14 13 11 1 Highest-Rated Group 992 | . 58 104 108 96 103 715 992 992 788 149 Highest-Rated Ally 159 | . 58 58 62 68 103 159 159 159 130 149 Total Orders 7 | . . . . . 2 2 . . . 3 EXPLORE 6 | . . . . . 2 2 . . . 2 RETURN 1 | . . . . . . . . . . 1 Ally Attacks 592 | . 24 . 32 12 14 106 85 25 167 127 Total Damage 20884 | . 389 . 642 313 2290 2876 2137 651 5675 5911 Kills 152 | . 12 . 5 1 17 23 11 3 38 42 Allies Corrupted 5 | . . . . . . . . . 5 . Allies Melted 2 | . . . . 2 . . . . . . Intel | -11 -10 -10 -10 -8 -6 -6 -6 -6 -6 -5 ------- Run | Yrd Mat Min Sub Scr Fac Ext Cet Arc Hub Fac Active Infowar (turns) 1547 | . 685 627 235 . . . . . . . Structural 1547 | . 685 627 235 . . . . . . . Robot Analysis Total . | . . . . . . . . . . . Derelict Logs Recovered 4 | . . 1 . 3 . . . . . . Drone Launches 9 | . . . . . 3 2 . . . 4 Drone Recoveries 5 | . . . . . 2 . . . . 3 Exploration | -11 -10 -10 -10 -8 -6 -6 -6 -6 -6 -5 ------------- Run | Yrd Mat Min Sub Scr Fac Ext Cet Arc Hub Fac Turns Passed 13605 | . 1202 627 617 4341 939 2150 760 394 813 1762 Spaces Moved 6726 | 1 711 485 345 2118 443 921 396 202 363 741 Core 1 | . . . . . 1 . . . . . Treads 3743 | . . . . 678 442 921 396 202 363 741 Legs 2982 | 1 711 485 345 1440 . . . . . . Wheels . | . . . . . . . . . . . Hover . | . . . . . . . . . . . Flight . | . . . . . . . . . . . Fastest Speed 120 | 120 120 120 120 160 160 160 160 160 160 160 Average Speed 162 | 120 120 120 160 180 163 179 160 160 160 160 Slowest Speed 800 | 120 120 120 190 190 800 240 160 160 160 160 Overloaded Moves . | . . . . . . . . . . . Propulsion Burnouts . | . . . . . . . . . . . Robots Hopped . | . . . . . . . . . . . Potential Cave-ins . | . . . . . . . . . . . Cave-ins Triggered 1 | . . . . 1 . . . . . . Exploration Rate (%) 58 | 2 95 98 21 89 19 88 75 96 41 17 Regions Visited 10 Branch Regions 7 Pre-discovered Areas 1 | . . 1 . . . . . . . . Known Exits Taken 1 | . . . . . 1 . . . . . Unknown Exits Taken 9 | 1 1 1 1 1 . 1 1 1 1 . Scrap Searched 10 | . . 1 5 4 . . . . . . Spaces Dug 9 | . . . . 2 3 3 . . . 1 Terrain Destroyed 487 | . . . . 2 3 3 5 1 213 260 Melee 4 | . . . . 2 1 . . . . 1 Projectile 107 | . . . . . 2 . 5 1 58 41 AOE 376 | . . . . . . 3 . . 155 218 Terrain Rammed . | . . . . . . . . . . . Walls Destroyed . | . . . . . . . . . . . Machines Disabled . | . . . . . . . . . . . Actions | -11 -10 -10 -10 -8 -6 -6 -6 -6 -6 -5 --------- Run | Yrd Mat Min Sub Scr Fac Ext Cet Arc Hub Fac Total 8802 | . 994 530 396 2631 629 1356 503 266 462 1035 Wait 1259 | . 222 44 7 464 123 184 72 60 15 68 Move 6716 | . 710 484 344 2117 442 920 395 201 362 741 Hop . | . . . . . . . . . . . Pick Up 68 | . 10 1 10 11 6 6 4 . 5 15 Fast Attach 86 | . 4 . 4 8 15 10 8 1 8 28 Attach 23 | . 1 . 1 1 5 2 . . 4 9 Detach . | . . . . . . . . . . . Swap 44 | . 3 . 5 5 9 8 1 . 1 12 Drop 115 | . 10 1 15 18 13 17 13 1 5 22 Fire 290 | . 34 . 5 3 13 30 10 3 58 134 Melee 11 | . . . 5 4 1 . . . . 1 Ram . | . . . . . . . . . . . Kick . | . . . . . . . . . . . Crush 13 | . . . . . 2 2 . . 4 5 Escape Stasis . | . . . . . . . . . . . Rewire 177 | . . . . . . 177 . . . . Trap . | . . . . . . . . . . . Miscellaneous . | . . . . . . . . . . . Route ------- -11/Scrapyard -10/Materials (discovered 6 exits: [*Mat x3] / [*Min x2] / [*Sub]) -10/Mines (discovered 3 exits: [*Mat x2] / [*Sub]) -10/Subcaves -8/Scraptown (discovered 2 exits: *Fac x2) -6/Factory (discovered 5 exits: Fac / Low x2 / *Ext x2) -6/Extension (discovered 3 exits: *Fac x2 / *Cet) -6/Cetus (discovered 3 exits: *Fac x2 / *Arc) -6/Archives (discovered 3 exits: *Fac / *Hub x2) -6/Hub_04(d) (discovered 4 exits: *Fac x4) -5/Factory History --------- Turn | Location | Event 1 | -11/Scrapyard | Discovered new exit (range 0) 1 | -11/Scrapyard | Entered Materials 190 | -10/Materials | Discovered new exit (range 5) 295 | -10/Materials | Discovered new exit (range 14) 318 | -10/Materials | Build established: Mutant 471 | -10/Materials | Discovered new exit (range 7) 674 | -10/Materials | Discovered new exit (range 16) 870 | -10/Materials | Discovered new exit (range 9) 916 | -10/Materials | Discovered new exit (range 6) 1203 | -10/Materials | Entered Mines 1399 | -10/Mines | Learned Materials trap positions 1601 | -10/Mines | Discovered new exit (range 10) 1602 | -10/Mines | Learned location of Storage (-8) 1629 | -10/Mines | Discovered new exit (range 9) 1785 | -10/Mines | Discovered new exit (range 6) 1830 | -10/Mines | Entered Subcaves 1830 | -10/Subcaves | Accompanied by 2 allies 1831 | -10/Subcaves | Approached by a straggling Scientist 1835 | -10/Subcaves | Led the pair of lost Derelicts to an unsafe place 1893 | -10/Subcaves | A swath of the cavern ceiling suddenly collapsed 2334 | -10/Subcaves | Shifting Twisted Machinery released Sub. Optics 2344 | -10/Subcaves | Shifting Twisted Machinery released Mak. Hacking Suite 2433 | -10/Subcaves | Scientist uncovered a shortcut to Scraptown 2447 | -10/Subcaves | Entered Scraptown 2447 | -8/Scraptown | Accompanied by 1 ally 2533 | -8/Scraptown | Visited Cyclists 2596 | -8/Scraptown | Visited Spacefarers 2651 | -8/Scraptown | Scanned Subdweller tech in exchange for log data 2655 | -8/Scraptown | Learned Factory stockpile data 2656 | -8/Scraptown | Learned Research emergency access door positions 2658 | -8/Scraptown | Learned location of 1 exit from Lower Caves 2685 | -8/Scraptown | Discovered new exit (range 11) 3472 | -8/Scraptown | Visited Scrapoid Research Area 3565 | -8/Scraptown | Visited Awakened 3597 | -8/Scraptown | Visited Symbiants 3637 | -8/Scraptown | Visited Bundlers 3876 | -8/Scraptown | Visited UFD Registry 3876 | -8/Scraptown | Registered with UFD as "Thermoglider" 4144 | -8/Scraptown | Entered Cyclist Reading Room 4478 | -8/Scraptown | Visited Observation Area 4541 | -8/Scraptown | Visited LU-1G1's Boring Crew 4617 | -8/Scraptown | Visited Junk Cannon Lab 4627 | -8/Scraptown | Found Prototype Special Weapon 4627 | -8/Scraptown | Identified Junk Cannon 4703 | -8/Scraptown | Delivered Scrap Shield to a Scientist 4893 | -8/Scraptown | Visited Science Testing Area 4923 | -8/Scraptown | Visited Scrapoid Pod Storage 4933 | -8/Scraptown | Found Scrapoid Pod 4992 | -8/Scraptown | Visited Scrap Suit Storage 5078 | -8/Scraptown | Visited Abandonware Association 5150 | -8/Scraptown | Visited DA-N13 Charitable Foundation 5158 | -8/Scraptown | Found DCF Scrap (29 items) 5305 | -8/Scraptown | Visited Cartography Club 5344 | -8/Scraptown | Found Surveybot 17 Chip 5653 | -8/Scraptown | Discovered new exit (range 3) 6337 | -8/Scraptown | Met Optimus 6337 | -8/Scraptown | Accepted into 0bPrime 6737 | -8/Scraptown | Civil war broke out across Scraptown 6757 | -8/Scraptown | Crushed by falling debris 6757 | -8/Scraptown | Core integrity fell below 50% 6757 | -8/Scraptown | Core integrity fell below 20% 6788 | -8/Scraptown | Entered Factory 6788 | -6/Factory | Evolved 8 slots: Power x1, Propulsion x1, Utility x5, Weapon x1 6814 | -6/Factory | Lost 3 allies 7044 | -6/Factory | Loaded intel: 8 recycling unit locations 7277 | -6/Factory | Build established: Scavenger-Tank 7574 | -6/Factory | Discovered new exit (range 14) 7589 | -6/Factory | Discovered new exit (range 6) 7664 | -6/Factory | Identified exit to Lower Caves 7664 | -6/Factory | Identified exit to Extension 7727 | -6/Factory | Entered Extension 7727 | -6/Extension | Accompanied by 1 ally 7741 | -6/Extension | Rescued a captive Derelict 7742 | -6/Extension | Rescued a captive Derelict 7745 | -6/Extension | Rescued a captive Derelict 7752 | -6/Extension | Rescued a captive Derelict 8266 | -6/Extension | Build established: Commander-Tank 8871 | -6/Extension | Spotted B-75 Beast 8881 | -6/Extension | Allies destroyed B-75 Beast 8894 | -6/Extension | Spotted B-75 Beast 8914 | -6/Extension | Allies destroyed B-75 Beast 8920 | -6/Extension | Discovered new exit (range 12) 9119 | -6/Extension | Scrapoid Pod released 06E07-D (x5) 9296 | -6/Extension | Rescued A7 9486 | -6/Extension | Build established: Scavenger-Tank 9804 | -6/Extension | Discovered new exit (range 10) 9807 | -6/Extension | Discovered new exit (range 6) 9877 | -6/Extension | Entered Cetus 9877 | -6/Cetus | Accompanied by 13 allies (A7) 9882 | -6/Cetus | Acquired a Cetus Manufacturing Module code from A7 9898 | -6/Cetus | Spotted Cetus Guard 9898 | -6/Cetus | Spotted Cetus Guard 9903 | -6/Cetus | Destroyed Cetus Guard 9906 | -6/Cetus | Spotted Cetus Guard 9909 | -6/Cetus | Spotted Cetus Guard 9912 | -6/Cetus | Allies destroyed Cetus Guard 9917 | -6/Cetus | Allies destroyed Cetus Guard 9923 | -6/Cetus | Allies destroyed Cetus Guard 9958 | -6/Cetus | Lost 4 allies 9975 | -6/Cetus | Discovered new exit (range 15) 10120 | -6/Cetus | Started Cetus Manufacturing Module 10145 | -6/Cetus | Manufactured an Enhanced Grunt 10170 | -6/Cetus | Manufactured an Enhanced Grunt 10195 | -6/Cetus | Manufactured an Enhanced Grunt 10195 | -6/Cetus | Discovered new exit (range 15) 10220 | -6/Cetus | Manufactured an Enhanced Grunt 10223 | -6/Cetus | Spotted Cetus Guard 10223 | -6/Cetus | Spotted Cetus Guard 10227 | -6/Cetus | Spotted Cetus Guard 10229 | -6/Cetus | Spotted Cetus Guard 10233 | -6/Cetus | Allies destroyed Cetus Guard 10240 | -6/Cetus | Allies destroyed Cetus Guard 10244 | -6/Cetus | Allies destroyed Cetus Guard 10245 | -6/Cetus | Manufactured an Enhanced Grunt 10254 | -6/Cetus | Discovered new exit (range 16) 10263 | -6/Cetus | Met Revision 17 10627 | -6/Cetus | Security sweep announced 10637 | -6/Cetus | Entered Archives 10637 | -6/Archives | Accompanied by 12 allies (A7) 10688 | -6/Archives | Unable to access archive contents 10704 | -6/Archives | Unable to access archive contents 10720 | -6/Archives | Unable to access archive contents 10720 | -6/Archives | Unable to access archive contents 10727 | -6/Archives | Discovered new exit (range 16) 10736 | -6/Archives | Unable to access archive contents 10776 | -6/Archives | Discovered new exit (range 15) 10840 | -6/Archives | Discovered new exit (range 15) 11031 | -6/Archives | Entered Hub_04(d) 11031 | -6/Hub_04(d) | Accompanied by 10 allies 11043 | -6/Hub_04(d) | Discovered new exit (range 15) 11177 | -6/Hub_04(d) | Discovered new exit (range 16) 11296 | -6/Hub_04(d) | Discovered new exit (range 15) 11607 | -6/Hub_04(d) | Network Hub disabled 11610 | -6/Hub_04(d) | Spotted Lightning 11614 | -6/Hub_04(d) | Spotted Lightning 11614 | -6/Hub_04(d) | Spotted Lightning 11624 | -6/Hub_04(d) | Allies destroyed Lightning 11626 | -6/Hub_04(d) | Discovered new exit (range 16) 11637 | -6/Hub_04(d) | Destroyed Lightning 11651 | -6/Hub_04(d) | Spotted Lightning 11655 | -6/Hub_04(d) | Spotted Lightning 11656 | -6/Hub_04(d) | Destroyed Lightning 11662 | -6/Hub_04(d) | Spotted Lightning 11673 | -6/Hub_04(d) | Lost 7 allies 11680 | -6/Hub_04(d) | System corruption reached 10% 11692 | -6/Hub_04(d) | Destroyed Lightning 11715 | -6/Hub_04(d) | Core integrity fell below 50% 11731 | -6/Hub_04(d) | First assault squad dispatched 11739 | -6/Hub_04(d) | Destroyed Lightning 11749 | -6/Hub_04(d) | Lost 3 parts (1n1u1w) 11755 | -6/Hub_04(d) | Destroyed Lightning 11844 | -6/Hub_04(d) | Entered Factory 11844 | -5/Factory | Evolved 2 slots: Utility x1, Weapon x1 12341 | -5/Factory | Garrison activated, responded to threat 12444 | -5/Factory | First assault squad dispatched 12668 | -5/Factory | Destroyed 11 combat bots 12953 | -5/Factory | Cargo convoy interrupted 13006 | -5/Factory | High security lockdown imminent 13086 | -5/Factory | High security lockdown engaged 13358 | -5/Factory | Destroyed 23 combat bots 13438 | -5/Factory | Destroyed 9 combat bots 13443 | -5/Factory | Lost 4 parts (1p2u1w) 13460 | -5/Factory | Core integrity fell below 50% 13492 | -5/Factory | Destroyed 10 combat bots 13508 | -5/Factory | Lost 5 parts (1p1n1u2w) 13589 | -5/Factory | Core integrity fell below 20% 13606 | -5/Factory | Core destroyed Last Messages --------------- 13594_ Lgt. Fission Core melted. 13594_ Phase Shifter melted. 13594_ H-66 Slayer destroyed. 13595_ Adv. Cooling System destroyed. 13595_ Penetrated by Slug. 13597_ P-70 Sage resets H-66 Slayer, system corruption cleaned. 13597_ Manufacturing Mainframe disabled. 13598_ Penetrated by Slug. 13600_ The unstable cave ceiling collapses. 13600_ Corrupted Lrg. Storage Unit crushed. 13600_ Destroyed Phase Shifter. 13602_ Slug penetrates Wall. 13602_ Backup Plating VII destroyed. 13602_ P-70 Sage resets H-66 Slayer, system corruption cleaned. 13603_ Field Laser destroyed. 13605_ Penetrated by Slug. 13606_ The unstable cave ceiling collapses. 13606_ Dropped Med. Storage Unit. Map ----- +----------------------------------------------------+ | ?????????????????? " ?# " """ % | | ????????????????? !] " ## " # """ ! | | ????????????????? !] " # " """ # | | ????????????????? ] " # # # | | ???????????????? ## ## # | | ??????????????? # = | | ??????????????? ! | | ?????????????? # % %% | | ?????????????? # # # # # # | | ???????????????? "" #### #### # ## | | ????????????????R"" ### ## ## # # | | ????????????????"" ## # " #### # | | ????????????########"""# %% %# """ #??#### | | ???????????? = "R " #?????## | | ??????????? %% """ """ #?????#" | | ???????????? ! % # "" """ #?????## | | ?????????????########## #??????# | | ???????????# % # ## = #??????# | | ???????????# ## ############??????? | | ???????????# """"""""" % ## #?????????????????? | | ???????????????? ## #?????????????????? | | ????????????????""""""" ## ##????????????????? | | ????????????????? m % ## ##########????????? | | ?????????????????######h###![ ??????? | | ?????????????????# =%[[! !%=* ??????? | | ?????????????????# *%[%!@# =%* """"""" ??????? | | ?????????????????#%""[ [ !# %% ! """"""?????????? | | ?????????????????# "" " # [=%!% """""""????????? | | ?????????????????# """" % """""" #????? | | ?????????????????# """"p # #????? | | ??????????????????? # """"""" #????? | | ?????????????????? """ ## # """"""" ??????? | | ???????????????????"""" ## # """"""" ?????? | | ????????????????????""" ## # " """"" #????? | | ????????????????????""" ?# # #????? | | ?????????????H???????? ?# ####+#########????? | | ??????????????????????" ?# #??#%#????????????? | | ??????????????????????" ?# #?##=#????????????? | | ??????????????????????" ?# #?## #??????????### | | ??????????????????????" * ?# #?## #?????????# # | | ??????????????????????? ?# #?## #????????# # | | ??????????????????????????## ####=##??????? # | | ???????????# #########+## #?#!#"####?##### | | ???????????# ###%## ### # | | ????????? % %==%" + | | ????????? % ###### #% # | | ????????????############+## #?#####%## =# | | ?????????????# ### ###?# ! =# #% | | ?????????????# #?#%#???# # # | | ?????????????# """"""""" #?# #???# " " # % | +----------------------------------------------------+ Best States ------------- Heat Dissipation 135 Coolant Potential 80 Energy Generation 37 Energy Capacity 745 Matter Stores 300 Matter Capacity 300 Sight Range 16 Terrain Scan Density 10 Armor Coverage 1050 Resistance: KI 20 Resistance: TH 20 Core Shielding 20 Evasion (%) 55 Recoil Reduction 3 Defensive Hacking 22 Item Schematics ----------------- None Robot Schematics ------------------ None Fabricated ------------ Nothing Repaired ---------- Nothing Alien Tech Used ----------------- None Achievements -------------- None Challenges ------------ None Player 2 | -11 -10 -10 -10 -8 -6 -6 -6 -6 -6 -5 ---------- Run | Yrd Mat Min Sub Scr Fac Ext Cet Arc Hub Fac Slots Evolved 10 | . . . . 8 . . . . 2 . Power 1 | . . . . 1 . . . . . . Propulsion 1 | . . . . 1 . . . . . . Utility 5 | . . . . 3 . . . . 2 . Weapon 3 | . . . . 3 . . . . . . Parts Attached 132 | . 10 . 4 4 17 10 6 2 13 66 Parts Lost 49 | . . . . . 2 1 . . 5 41 Damage Taken 7131 | . 95 . 134 21 786 199 . . 1655 4241 Core 898 | . 8 . 50 . 146 . . . 90 604 Player 2/Cogmind (%) 52 | . 12 . 100 . 89 . . . 33 59 Absorbed by Shields 9 | . . . . . . 9 . . . . Damage Inflicted 11813 | . 389 . 197 163 2290 1017 103 . 1743 5911 Player 2/Cogmind (%) 33 | . 39 . 69 58 82 36 12 . 31 27 Combat Hostiles Destroyed 68 | . 6 . . 1 11 8 1 . 8 33 Player 2/Cogmind (%) 38 | . 46 . . 100 61 61 50 . 34 31 Game ------ Seed RecoilGravitonDerivative Manual? 0 Play Time 02:09:04 Cumulative 447.6 hours Start 2025.08.22 @ 11:15:41 End 2025.08.22 @ 13:34:14 Sessions 2 Manual Loads 0 Difficulty Rogue Special Mode AFD2020/Player2 Game No. 257 Rogue 257 Adventurer 0 Explorer 0 Win Type - Total 11 Types 10/0/1/0/0/0/0/0/0/0 Lore% 76 Gallery% 68 Achievement% 55 Wizard Run 0 Options --------- Layout 1 ASCII 0 Keyboard 0 Movement Numpad Keybinds 0 Fullscreen 1 Font 24/Smallcaps Map View 50x35 Zoom Use 0% Tactical HUD 1 Map Filters NONE Filters NONE Steam 1 RUN: 8fb6c6a5-326b-42cc-8304-42e995ebcf88